fUST/lending_fUST_20251206
["ID","MTS","AMOUNT","RATE_DAILY","PERIOD"]
[396475243,1764979850297,-500.0,0.00016712,2]
[396475244,1764979850307,-576.17,0.00016712,2]
[396475245,1764979850316,-500.0,0.00016712,2]
[396475246,1764979850327,-459.35199807,0.00016712,2]
[396475247,1764979850336,-500.0,0.00016712,2]
[396475248,1764979850346,-500.0,0.00016712,2]
[396475249,1764979850356,-500.0,0.00016712,2]
[396475250,1764979850365,-500.0,0.00016712,2]
[396475251,1764979850374,-500.0,0.00016712,2]
[396475252,1764979850383,-500.0,0.00016712,2]
[396475253,1764979850441,-329.66783235,0.00016712,2]
[396475254,1764979850451,-500.0,0.00016712,2]
[396475255,1764979850460,-500.0,0.00016712,2]
[396475256,1764979850469,-500.0,0.00016712,2]
[396475257,1764979850479,-500.0,0.00016712,2]
[396475258,1764979850488,-500.0,0.00016712,2]
[396475259,1764979850497,-500.0,0.00016712,2]
[396475260,1764979850506,-206.44829419,0.00016712,2]
[396475261,1764979850515,-500.0,0.00016712,2]
[396475262,1764979850524,-629.44,0.00016712,2]
[396475263,1764979850533,-999.47,0.00016712,2]
[396475264,1764979850542,-500.0,0.00016712,2]
[396475265,1764979850551,-227.76820906,0.00016712,2]
[396475266,1764979850560,-564.10398066,0.00016712,2]
[396475267,1764979850568,-500.0,0.00016712,2]
[396475268,1764979850576,-500.0,0.00016712,2]
[396475269,1764979850584,-500.0,0.00016712,2]
[396475270,1764979850592,-500.0,0.00016712,2]
[396475271,1764979850601,-500.0,0.00016712,2]
[396475272,1764979850608,-500.0,0.00016712,2]
[396475273,1764979850616,-500.0,0.00016712,2]
[396475274,1764979850630,-500.0,0.00016712,2]
[396475275,1764979850640,-500.0,0.00016712,2]
[396475276,1764979850648,-925.01,0.00016712,2]
[396475277,1764979850656,-326.63680953,0.00016712,2]
[396475278,1764979850665,-500.0,0.00016712,2]
[396475279,1764979850675,-575.96,0.00016712,2]
[396475280,1764979850684,-500.0,0.00016712,2]
[396475281,1764979850694,-500.0,0.00016712,2]
[396475282,1764979850706,-500.0,0.00016712,2]
[396475283,1764979850716,-501.52,0.00016712,2]
[396475284,1764979850726,-500.0,0.00016712,2]
[396475285,1764979850736,-500.0,0.00016712,2]
[396475286,1764979850745,-1080.79,0.00016712,2]
[396475287,1764979850755,-500.0,0.00016712,2]
[396475288,1764979850766,-2071.01,0.00016712,2]
[396475289,1764979850783,-500.0,0.00016712,2]
[396475290,1764979850793,-786.32,0.00016712,2]
[396475291,1764979850802,-500.0,0.00016712,2]
[396475292,1764979850811,-500.0,0.00016712,2]
[396475293,1764979850821,-500.0,0.00016712,2]
[396475294,1764979850830,-500.0,0.00016712,2]
[396475295,1764979850839,-500.0,0.00016712,2]
[396475296,1764979850849,-165.7626055,0.00016712,2]
[396475297,1764979850858,-40594.73873084,0.00016712,2]
[396475298,1764979851483,-654.33,0.00012329,2]
[396475299,1764979851494,-158.63809532,0.00015571,2]
[396475300,1764979851504,-500.0,0.0001576,2]
[396475301,1764979851514,-500.0,0.00016034,2]
[396475302,1764979851526,-151.0,0.00016286,2]
[396475303,1764979851537,-152.44518229,0.00016286,2]
[396475304,1764979851548,-151.0,0.00016286,2]
[396475305,1764979851558,-500.0,0.00016308,2]
[396475306,1764979851568,-151.98929535,0.00016423,2]
[396475307,1764979851576,-500.0,0.00016582,2]
[396475308,1764979851586,-1811.8350869,0.00016712,2]
[396475309,1764979852116,-153.19973971,0.00016286,2]
[396475310,1764979852126,-209.46232055,0.00016286,2]
[396475311,1764979852135,-152.75342558,0.00016286,2]
[396475312,1764979852144,-1075.62752197,0.00016338,2]
[396475313,1764979852334,-201.26442786,0.00016286,2]
[396475314,1764979852343,-151.45815104,0.00016286,2]
[396475315,1764979852352,-3477.732563,0.00016338,2]
[396475316,1764979852361,-500.0,0.00016438,2]
[396475317,1764979852370,-7593.42618226,0.00016712,2]
[396475318,1764979852380,-199.68672361,0.00016712,2]
[396475319,1764979852389,-500.0,0.00016712,2]
[396475320,1764979852398,-500.0,0.00016712,2]
[396475321,1764979852407,-500.0,0.00016712,2]
[396475322,1764979852415,-500.0,0.00016712,2]
[396475323,1764979852424,-339.45454992,0.00016712,2]
[396475324,1764979852433,-500.0,0.00016712,2]
[396475325,1764979852442,-500.0,0.00016712,2]
[396475326,1764979852451,-177.75842991,0.00016712,2]
[396475327,1764979852460,-500.0,0.00016712,2]
[396475328,1764979852470,-500.0,0.00016712,2]
[396475329,1764979852479,-500.0,0.00016712,2]
[396475330,1764979852488,-500.0,0.00016712,2]
[396475331,1764979852497,-240.6489859,0.00016712,2]
[396475332,1764979852506,-500.0,0.00016712,2]
[396475333,1764979852515,-842.31,0.00016712,2]
[396475334,1764979852523,-378.85985062,0.00016712,2]
[396475335,1764979852532,-632.48858219,0.00016712,2]
[396475336,1764979852542,-500.0,0.00016712,2]
[396475337,1764979852551,-500.0,0.00016712,2]
[396475338,1764979852560,-500.0,0.00016712,2]
[396475339,1764979852569,-1121.01,0.00016712,2]
[396475340,1764979852577,-500.0,0.00016712,2]
[396475341,1764979852586,-500.0,0.00016712,2]
[396475342,1764979852595,-500.0,0.00016712,2]
[396475343,1764979852603,-2292.89,0.00016712,2]
[396475344,1764979852612,-500.0,0.00016712,2]
[396475345,1764979852621,-500.0,0.00016712,2]
[396475346,1764979852632,-500.0,0.00016712,2]
[396475347,1764979852644,-562.46,0.00016712,2]
[396475348,1764979852653,-500.0,0.00016712,2]
[396475349,1764979852663,-510.47,0.00016712,2]
[396475350,1764979852673,-500.0,0.00016712,2]
[396475351,1764979852683,-452.01251963,0.00016712,2]
[396475352,1764979852692,-500.0,0.00016712,2]
[396475353,1764979852701,-1372.78,0.00016712,2]
[396475354,1764979852714,-500.0,0.00016712,2]
[396475355,1764979852723,-500.0,0.00016712,2]
[396475356,1764979852732,-500.45,0.00016712,2]
[396475357,1764979852740,-500.0,0.00016712,2]
[396475358,1764979852749,-500.0,0.00016712,2]
[396475359,1764979852758,-500.0,0.00016712,2]
[396475360,1764979852766,-500.0,0.00016712,2]
[396475361,1764979852776,-1326.12,0.00016712,2]
[396475362,1764979852784,-500.0,0.00016712,2]
[396475363,1764979852793,-570.01,0.00016712,2]
[396475364,1764979852802,-500.0,0.00016712,2]
[396475365,1764979852811,-500.0,0.00016712,2]
[396475366,1764979852820,-500.0,0.00016712,2]
[396475367,1764979852828,-501.09599626,0.00016712,2]
[396475368,1764979852837,-667.86,0.00016712,2]
[396475369,1764979852846,-500.0,0.00016712,2]
[396475370,1764979852855,-1070.09,0.00016712,2]
[396475371,1764979852864,-500.0,0.00016712,2]
[396475372,1764979852873,-500.0,0.00016712,2]
[396475373,1764979852882,-1123.62,0.00016712,2]
[396475374,1764979852891,-187.23,0.00016712,2]
[396475375,1764979852901,-500.0,0.00016712,2]
[396475376,1764979852911,-500.0,0.00016712,2]
[396475377,1764979852920,-500.0,0.00016712,2]
[396475378,1764979852931,-500.0,0.00016712,2]
[396475379,1764979852940,-500.0,0.00016712,2]
[396475380,1764979852949,-500.0,0.00016712,2]
[396475381,1764979852958,-500.0,0.00016712,2]
[396475382,1764979852967,-500.0,0.00016712,2]
[396475383,1764979852976,-540.75,0.00016712,2]
[396475384,1764979852985,-500.0,0.00016712,2]
[396475385,1764979852994,-500.0,0.00016712,2]
[396475386,1764979853003,-500.0,0.00016712,2]
[396475387,1764979853012,-500.0,0.00016712,2]
[396475388,1764979853021,-500.0,0.00016712,2]
[396475389,1764979853031,-708.57,0.00016712,2]
[396475390,1764979853040,-500.0,0.00016712,2]
[396475391,1764979853049,-500.0,0.00016712,2]
[396475392,1764979853058,-500.0,0.00016712,2]
[396475393,1764979853067,-500.0,0.00016712,2]
[396475394,1764979853077,-2431.37,0.00016712,2]
[396475395,1764979853087,-500.0,0.00016712,2]
[396475396,1764979853096,-500.0,0.00016712,2]
[396475397,1764979853105,-500.0,0.00016712,2]
[396475398,1764979853115,-500.0,0.00016712,2]
[396475399,1764979853124,-500.0,0.00016712,2]
[396475400,1764979853133,-500.0,0.00016712,2]
[396475401,1764979853142,-763.11,0.00016712,2]
[396475402,1764979853151,-500.0,0.00016712,2]
[396475403,1764979853161,-7292.65,0.00016712,2]
[396475404,1764979853170,-224.26688866,0.00016712,2]
[396475405,1764979853180,-500.0,0.00016712,2]
[396475406,1764979853190,-500.0,0.00016712,2]
[396475407,1764979853200,-626.87,0.00016712,2]
[396475408,1764979853209,-958.07,0.00016712,2]
[396475409,1764979853219,-758.56,0.00016712,2]
[396475410,1764979853228,-1026.33,0.00016712,2]
[396475411,1764979853238,-500.0,0.00016712,2]
[396475412,1764979853247,-500.0,0.00016712,2]
[396475413,1764979853257,-500.0,0.00016712,2]
[396475414,1764979853267,-500.0,0.00016712,2]
[396475415,1764979853277,-866.0,0.00016712,2]
[396475416,1764979853287,-975.67,0.00016712,2]
[396475417,1764979853296,-624.32,0.00016712,2]
[396475418,1764979853305,-500.0,0.00016712,2]
[396475419,1764979853315,-265.8314401,0.00016712,2]
[396475420,1764979853325,-700.8,0.00016712,2]
[396475421,1764979853334,-1892.35,0.00016712,2]
[396475422,1764979853343,-500.0,0.00016712,2]
[396475423,1764979853353,-916.06,0.00016712,2]
[396475424,1764979853362,-2270.65,0.00016712,2]
[396475425,1764979853371,-422.59732313,0.00016712,2]
[396475426,1764979853380,-500.0,0.00016712,2]
[396475427,1764979853390,-500.0,0.00016712,2]
[396475428,1764979853399,-500.0,0.00016712,2]
[396475429,1764979853409,-500.0,0.00016712,2]
[396475430,1764979853419,-500.0,0.00016712,2]
[396475431,1764979853429,-500.0,0.00016712,2]
[396475432,1764979853439,-500.0,0.00016712,2]
[396475433,1764979853449,-500.0,0.00016712,2]
[396475434,1764979853458,-500.0,0.00016712,2]
[396475435,1764979853467,-703.89,0.00016712,2]
[396475436,1764979853477,-500.0,0.00016712,2]
[396475437,1764979853486,-500.0,0.00016712,2]
[396475438,1764979853496,-500.0,0.00016712,2]
[396475439,1764979853505,-500.0,0.00016712,2]
[396475440,1764979853514,-500.0,0.00016712,2]
[396475441,1764979853524,-211.5034827,0.00016712,2]
[396475442,1764979853533,-834.49,0.00016712,2]
[396475443,1764979853542,-500.0,0.00016712,2]
[396475444,1764979853550,-500.0,0.00016712,2]
[396475445,1764979853558,-500.0,0.00016712,2]
[396475446,1764979853567,-568.93,0.00016712,2]
[396475447,1764979853575,-743.83,0.00016712,2]
[396475448,1764979853584,-500.0,0.00016712,2]
[396475449,1764979853594,-500.0,0.00016712,2]
[396475450,1764979853603,-2408.31,0.00016712,2]
[396475451,1764979853612,-500.0,0.00016712,2]
[396475452,1764979853621,-500.0,0.00016712,2]
[396475453,1764979853635,-3083.38,0.00016712,2]
[396475454,1764979853644,-1580.71,0.00016712,2]
[396475455,1764979853653,-500.0,0.00016712,2]
[396475456,1764979853662,-500.0,0.00016712,2]
[396475457,1764979853674,-1653.87,0.00016712,2]
[396475458,1764979853683,-500.0,0.00016712,2]
[396475459,1764979853692,-500.0,0.00016712,2]
[396475460,1764979853702,-492.37313972,0.00016712,2]
[396475461,1764979853712,-3817.0,0.00016712,2]
[396475462,1764979853721,-500.0,0.00016712,2]
[396475463,1764979853731,-262.50106611,0.00016712,2]
[396475464,1764979853741,-500.0,0.00016712,2]
[396475465,1764979853750,-500.0,0.00016712,2]
[396475466,1764979853759,-500.0,0.00016712,2]
[396475467,1764979853768,-500.0,0.00016712,2]
[396475468,1764979853778,-500.0,0.00016712,2]
[396475469,1764979853787,-500.0,0.00016712,2]
[396475470,1764979853796,-300.28547553,0.00016712,2]
[396475471,1764979853805,-336.06776643,0.00016712,2]
[396475472,1764979853815,-500.0,0.00016712,2]
[396475473,1764979853824,-500.0,0.00016712,2]
[396475474,1764979853834,-500.0,0.00016712,2]
[396475475,1764979853844,-500.0,0.00016712,2]
[396475476,1764979853853,-1531.63,0.00016712,2]
[396475477,1764979853863,-357.98395524,0.00016712,2]
[396475478,1764979853872,-626.95,0.00016712,2]
[396475479,1764979853882,-500.0,0.00016712,2]
[396475480,1764979853891,-1057.26,0.00016712,2]
[396475481,1764979853900,-612.49,0.00016712,2]
[396475482,1764979853909,-500.0,0.00016712,2]
[396475483,1764979853919,-531.76,0.00016712,2]
[396475484,1764979853929,-539.69,0.00016712,2]
[396475485,1764979853938,-642.4,0.00016712,2]
[396475486,1764979853947,-573.03378528,0.00016712,2]
[396475487,1764979853957,-677.46,0.00016712,2]
[396475488,1764979853967,-500.0,0.00016712,2]
[396475489,1764979854078,-500.0,0.00016712,2]
[396475490,1764979854088,-500.0,0.00016712,2]
[396475491,1764979854098,-500.0,0.00016712,2]
[396475492,1764979854108,-500.0,0.00016712,2]
[396475493,1764979854118,-2400.47,0.00016712,2]
[396475494,1764979854127,-500.0,0.00016712,2]
[396475495,1764979854136,-689.83,0.00016712,2]
[396475496,1764979854146,-500.0,0.00016712,2]
[396475497,1764979854156,-5648.15,0.00016712,2]
[396475498,1764979854165,-500.0,0.00016712,2]
[396475499,1764979854175,-6847.52,0.00016712,2]
[396475500,1764979854185,-567.92,0.00016712,2]
[396475501,1764979854195,-743.95,0.00016712,2]
[396475502,1764979854205,-2345.06,0.00016712,2]
[396475503,1764979854215,-500.0,0.00016712,2]
[396475504,1764979854225,-517.57112824,0.00016712,2]
[396475505,1764979854235,-500.0,0.00016712,2]
[396475506,1764979854245,-500.0,0.00016712,2]
[396475507,1764979854254,-4257.61,0.00016712,2]
[396475508,1764979854263,-500.0,0.00016712,2]
[396475509,1764979854273,-1109.63,0.00016712,2]
[396475510,1764979854282,-500.0,0.00016712,2]
[396475511,1764979854292,-613.62,0.00016712,2]
[396475512,1764979854302,-500.0,0.00016712,2]
[396475513,1764979854311,-938.14,0.00016712,2]
[396475514,1764979854321,-728.4,0.00016712,2]
[396475515,1764979854331,-500.0,0.00016712,2]
[396475516,1764979854340,-500.0,0.00016712,2]
[396475517,1764979854350,-500.0,0.00016712,2]
[396475518,1764979854359,-500.0,0.00016712,2]
[396475519,1764979854369,-1003.99,0.00016712,2]
[396475520,1764979854379,-500.0,0.00016712,2]
[396475521,1764979854388,-1489.19,0.00016712,2]
[396475522,1764979854397,-564.45,0.00016712,2]
[396475523,1764979854407,-653.63,0.00016712,2]
[396475524,1764979854416,-500.0,0.00016712,2]
[396475525,1764979854426,-500.0,0.00016712,2]
[396475526,1764979854436,-500.0,0.00016712,2]
[396475527,1764979854446,-500.0,0.00016712,2]
[396475528,1764979854455,-522.14,0.00016712,2]
[396475529,1764979854465,-500.0,0.00016712,2]
[396475530,1764979854474,-5862.07,0.00016712,2]
[396475531,1764979854484,-500.0,0.00016712,2]
[396475532,1764979854494,-1714.07,0.00016712,2]
[396475533,1764979854503,-1709.26,0.00016712,2]
[396475534,1764979854513,-500.0,0.00016712,2]
[396475535,1764979854522,-3818.32,0.00016712,2]
[396475536,1764979854531,-500.0,0.00016712,2]
[396475537,1764979854540,-500.0,0.00016712,2]
[396475538,1764979854549,-3712.0,0.00016712,2]
[396475539,1764979854559,-934.71,0.00016712,2]
[396475540,1764979854568,-653.41,0.00016712,2]
[396475541,1764979854577,-1597.54,0.00016712,2]
[396475542,1764979854586,-511.73,0.00016712,2]
[396475543,1764979854596,-857.34,0.00016712,2]
[396475544,1764979854606,-500.0,0.00016712,2]
[396475545,1764979854615,-500.0,0.00016712,2]
[396475546,1764979854625,-535.78,0.00016712,2]
[396475547,1764979854638,-973.38,0.00016712,2]
[396475548,1764979854647,-500.0,0.00016712,2]
[396475549,1764979854656,-727.95,0.00016712,2]
[396475550,1764979854666,-500.0,0.00016712,2]
[396475551,1764979854677,-547.86,0.00016712,2]
[396475552,1764979854687,-500.0,0.00016712,2]
[396475553,1764979854696,-500.0,0.00016712,2]
[396475554,1764979854707,-1026.22,0.00016712,2]
[396475555,1764979854718,-500.0,0.00016712,2]
[396475556,1764979854727,-500.0,0.00016712,2]
[396475557,1764979854736,-2159.91,0.00016712,2]
[396475558,1764979854745,-1121.22,0.00016712,2]
[396475559,1764979854755,-693.42,0.00016712,2]
[396475560,1764979854764,-500.0,0.00016712,2]
[396475561,1764979854773,-868.02,0.00016712,2]
[396475562,1764979854782,-834.72,0.00016712,2]
[396475563,1764979854791,-4993.88,0.00016712,2]
[396475564,1764979854800,-500.0,0.00016712,2]
[396475565,1764979854809,-500.0,0.00016712,2]
[396475566,1764979854818,-12126.32,0.00016712,2]
[396475567,1764979854828,-5503.39,0.00016712,2]
[396475568,1764979854838,-500.0,0.00016712,2]
[396475569,1764979854847,-500.0,0.00016712,2]
[396475570,1764979854857,-500.0,0.00016712,2]
[396475571,1764979854866,-602.64,0.00016712,2]
[396475572,1764979854876,-500.0,0.00016712,2]
[396475573,1764979854885,-500.0,0.00016712,2]
[396475574,1764979854895,-547.9,0.00016712,2]
[396475575,1764979854904,-500.0,0.00016712,2]
[396475576,1764979854913,-898.99,0.00016712,2]
[396475577,1764979854923,-3070.28,0.00016712,2]
[396475578,1764979854932,-500.0,0.00016712,2]
[396475579,1764979854942,-759.01,0.00016712,2]
[396475580,1764979854951,-757.38,0.00016712,2]
[396475581,1764979854960,-531.69,0.00016712,2]
[396475582,1764979854970,-500.0,0.00016712,2]
[396475583,1764979854980,-744.53,0.00016712,2]
[396475584,1764979854990,-500.0,0.00016712,2]
[396475585,1764979855000,-500.0,0.00016712,2]
[396475586,1764979855011,-1048.51,0.00016712,2]
[396475587,1764979855021,-651.28,0.00016712,2]
[396475588,1764979855030,-500.0,0.00016712,2]
[396475589,1764979855040,-2296.67,0.00016712,2]
[396475590,1764979855049,-1923.17,0.00016712,2]
[396475591,1764979855058,-500.0,0.00016712,2]
[396475592,1764979855067,-500.0,0.00016712,2]
[396475593,1764979855078,-5747.0,0.00016808,2]
[396475594,1764979855087,-322.8,0.00016812,2]
[396475595,1764979855097,-500.0,0.00016828,2]
[396475596,1764979855106,-500.0,0.00016856,2]
[396475597,1764979855115,-3260.45277391,0.00016882,2]
[396475598,1764979855125,-2100.0,0.0001696,2]
[396475599,1764979855135,-288.22213063,0.00016986,2]
[396475600,1764979855144,-500.0,0.00016986,2]
[396475601,1764979855153,-500.0,0.00016986,2]
[396475602,1764979855162,-225.18106848,0.00016986,2]
[396475603,1764979855171,-500.0,0.00016986,2]
[396475604,1764979855181,-500.0,0.00016986,2]
[396475605,1764979855191,-500.0,0.00016986,2]
[396475606,1764979855201,-500.0,0.00016986,2]
[396475607,1764979855210,-500.0,0.00016986,2]
[396475608,1764979855219,-500.0,0.00016986,2]
[396475609,1764979855229,-500.0,0.00016986,2]
[396475610,1764979855240,-500.0,0.00016986,2]
[396475611,1764979855250,-500.0,0.00016986,2]
[396475612,1764979855260,-500.0,0.00016986,2]
[396475613,1764979855269,-500.0,0.00016986,2]
[396475614,1764979855280,-509.78,0.00016986,2]
[396475615,1764979855290,-629.47,0.00016986,2]
[396475616,1764979855300,-500.0,0.00016986,2]
[396475617,1764979855309,-500.0,0.00016986,2]
[396475618,1764979855319,-500.0,0.00016986,2]
[396475619,1764979855328,-551.95,0.00016986,2]
[396475620,1764979855339,-500.0,0.00016986,2]
[396475621,1764979855348,-500.0,0.00016986,2]
[396475622,1764979855358,-500.0,0.00016986,2]
[396475623,1764979855368,-500.0,0.00016986,2]
[396475624,1764979855378,-500.0,0.00016986,2]
[396475625,1764979855388,-500.0,0.00016986,2]
[396475626,1764979855398,-373.35871888,0.00016986,2]
[396475627,1764979855409,-500.0,0.00016986,2]
[396475628,1764979855419,-500.0,0.00016986,2]
[396475629,1764979855430,-500.0,0.00016986,2]
[396475630,1764979855440,-500.0,0.00016986,2]
[396475631,1764979855450,-500.0,0.00016986,2]
[396475632,1764979855459,-500.0,0.00016986,2]
[396475633,1764979855469,-500.0,0.00016986,2]
[396475634,1764979855478,-500.0,0.00016986,2]
[396475635,1764979855487,-379.56496618,0.00016986,2]
[396475636,1764979855497,-500.0,0.00016986,2]
[396475637,1764979855506,-500.0,0.00016986,2]
[396475638,1764979855515,-797.74,0.00016986,2]
[396475639,1764979855525,-500.0,0.00016986,2]
[396475640,1764979855534,-628.12,0.00016986,2]
[396475641,1764979855543,-1009.17,0.00016986,2]
[396475642,1764979855552,-500.0,0.00016986,2]
[396475643,1764979855561,-500.0,0.00016986,2]
[396475644,1764979855570,-500.0,0.00016986,2]
[396475645,1764979855579,-500.0,0.00016986,2]
[396475646,1764979855589,-500.0,0.00016986,2]
[396475647,1764979855599,-500.0,0.00016986,2]
[396475648,1764979855608,-540.23,0.00016986,2]
[396475649,1764979855618,-500.0,0.00016986,2]
[396475650,1764979855629,-500.0,0.00016986,2]
[396475651,1764979855641,-500.0,0.00016986,2]
[396475652,1764979855651,-500.0,0.00016986,2]
[396475653,1764979855662,-525.20257575,0.00016986,2]
[396475654,1764979855671,-570.97,0.00016986,2]
[396475655,1764979855680,-500.0,0.00016986,2]
[396475656,1764979855689,-500.0,0.00016986,2]
[396475657,1764979855700,-500.0,0.00016986,2]
[396475658,1764979855709,-500.0,0.00016986,2]
[396475659,1764979855718,-637.33,0.00016986,2]
[396475660,1764979855728,-500.0,0.00016986,2]
[396475661,1764979855739,-551.9,0.00016986,2]
[396475662,1764979855749,-833.68,0.00016986,2]
[396475663,1764979855758,-500.0,0.00016986,2]
[396475664,1764979855768,-500.0,0.00016986,2]
[396475665,1764979855778,-500.0,0.00016986,2]
[396475666,1764979855789,-500.0,0.00016986,2]
[396475667,1764979855799,-500.0,0.00016986,2]
[396475668,1764979855809,-500.0,0.00016986,2]
[396475669,1764979855818,-661.32,0.00016986,2]
[396475670,1764979855828,-500.0,0.00016986,2]
[396475671,1764979855839,-500.0,0.00016986,2]
[396475672,1764979855849,-500.0,0.00016986,2]
[396475673,1764979855859,-500.0,0.00016986,2]
[396475674,1764979855869,-500.0,0.00016986,2]
[396475675,1764979855879,-500.0,0.00016986,2]
[396475676,1764979855888,-500.0,0.00016986,2]
[396475677,1764979855898,-500.0,0.00016986,2]
[396475678,1764979855907,-500.0,0.00016986,2]
[396475679,1764979855918,-500.0,0.00016986,2]
[396475680,1764979855927,-500.0,0.00016986,2]
[396475681,1764979855936,-500.0,0.00016986,2]
[396475682,1764979855946,-211.32254997,0.00016986,2]
[396475683,1764979855956,-500.0,0.00016986,2]
[396475684,1764979855965,-500.0,0.00016986,2]
[396475685,1764979855976,-500.0,0.00016986,2]
[396475686,1764979855986,-500.0,0.00016986,2]
[396475687,1764979855995,-629.44,0.00016986,2]
[396475688,1764979856005,-209.59216508,0.00016986,2]
[396475689,1764979856014,-377.26589714,0.00016986,2]
[396475690,1764979856023,-999.47,0.00016986,2]
[396475691,1764979856032,-670.69492825,0.00016986,2]
[396475692,1764979856041,-500.0,0.00016986,2]
[396475693,1764979856050,-1047.96082539,0.00016986,2]
[396475694,1764979856059,-1509.06358856,0.00016986,2]
[396475695,1764979856068,-2051.94921454,0.00016986,2]
[396475696,1764979856078,-500.0,0.00016986,2]
[396475697,1764979856088,-500.0,0.00016986,2]
[396475698,1764979856096,-500.0,0.00016986,2]
[396475699,1764979856105,-500.0,0.00016986,2]
[396475700,1764979856114,-500.0,0.00016986,2]
[396475701,1764979856123,-500.0,0.00016986,2]
[396475702,1764979856132,-500.0,0.00016986,2]
[396475703,1764979856142,-500.0,0.00016986,2]
[396475704,1764979856152,-500.0,0.00016986,2]
[396475705,1764979856162,-925.01,0.00016986,2]
[396475706,1764979856172,-500.0,0.00016986,2]
[396475707,1764979856182,-575.96,0.00016986,2]
[396475708,1764979856191,-500.0,0.00016986,2]
[396475709,1764979856201,-500.0,0.00016986,2]
[396475710,1764979856211,-500.0,0.00016986,2]
[396475711,1764979856220,-501.52,0.00016986,2]
[396475712,1764979856230,-500.0,0.00016986,2]
[396475713,1764979856240,-500.0,0.00016986,2]
[396475714,1764979856249,-1080.79,0.00016986,2]
[396475715,1764979856258,-500.0,0.00016986,2]
[396475716,1764979856267,-2071.01,0.00016986,2]
[396475717,1764979856529,-500.0,0.00016986,2]
[396475718,1764979856539,-786.32,0.00016986,2]
[396475719,1764979856548,-500.0,0.00016986,2]
[396475720,1764979856557,-500.0,0.00016986,2]
[396475721,1764979856566,-500.0,0.00016986,2]
[396475722,1764979856575,-500.0,0.00016986,2]
[396475723,1764979856584,-150.6119533,0.00016986,2]
[396475724,1764979856594,-500.0,0.00016986,2]
[396475725,1764979856603,-500.0,0.00016986,2]
[396475726,1764979856612,-500.0,0.00016986,2]
[396475727,1764979856621,-500.0,0.00016986,2]
[396475728,1764979856634,-500.0,0.00016986,2]
[396475729,1764979856644,-500.0,0.00016986,2]
[396475730,1764979856653,-500.0,0.00016986,2]
[396475731,1764979856662,-500.0,0.00016986,2]
[396475732,1764979856673,-500.0,0.00016986,2]
[396475733,1764979856682,-500.0,0.00016986,2]
[396475734,1764979856692,-500.0,0.00016986,2]
[396475735,1764979856701,-182.12695845,0.00016986,2]
[396475736,1764979856711,-842.31,0.00016986,2]
[396475737,1764979856720,-327.8285252,0.00016986,2]
[396475738,1764979856729,-582.80626703,0.00016986,2]
[396475739,1764979856739,-500.0,0.00016986,2]
[396475740,1764979856748,-910.63479223,0.00016986,2]
[396475741,1764979856758,-500.0,0.00016986,2]
[396475742,1764979856767,-500.0,0.00016986,2]